bitfinex-derivatives/quotes_ETHF0:USTF0_20240904
["timestamp","ask_amount","ask_price","bid_price","bid_amount"]
[1725422003629,4.95056639,2376.9,2376.5,7.118]
[1725422003832,4.95056639,2376.9,2376.8,0.42079]
[1725422004026,0.113,2377.3,2376.6,3.2078]
[1725422004027,3.62851,2377.3,2376.6,3.2078]
[1725422004232,0.42073,2377.2,2376.9,0.42077]
[1725422004432,3.2078,2377.3,2376.7,0.9147]
[1725422004433,6.1178,2377.3,2376.7,0.9147]
[1725422004635,0.42078,2376.9,2376.7,0.4939]
[1725422005024,0.42078,2376.9,2376.5,0.46]
[1725422005025,3.2078,2377.0,2376.5,0.46]
[1725422005226,2.91,2376.9,2376.4,1.38555]
[1725422005426,0.42083,2376.6,2376.4,1.38555]
[1725422006339,2.91,2376.9,2376.4,1.38555]
[1725422006340,0.42082,2376.7,2376.4,1.38555]
[1725422007037,0.42082,2376.7,2376.4,0.42085]
[1725422007339,0.42082,2376.7,2376.1,0.00631393]
[1725422007340,0.4209,2376.2,2376.1,0.00631393]
[1725422007530,3.6287,2376.2,2376.1,0.00631393]
[1725422007726,7.8375,2376.2,2376.1,0.00631393]
[1725422007931,8.336,2376.2,2376.1,0.00631393]
[1725422009831,4.1272,2376.2,2376.1,0.00631393]
[1725422010235,3.7063,2376.2,2376.1,0.00631393]
[1725422011134,4.1272,2376.2,2376.1,0.00631393]
[1725422011734,4.1272,2376.2,2375.5,0.90651]
[1725422011735,0.42095,2376.0,2375.4,3.2078]
[1725422011935,3.2078,2375.9,2375.4,1.34973]
[1725422012144,3.2078,2375.9,2375.4,0.9287]
[1725422012834,3.21411393,2375.9,2375.4,0.93501393]
[1725422013238,0.42097,2375.8,2375.4,0.93501393]
[1725422013441,3.63507393,2375.9,2375.4,0.93501393]
[1725422013829,0.42097,2375.8,2375.4,0.93501393]
[1725422014635,3.21411393,2375.9,2375.4,0.93501393]
[1725422014836,0.5019,2375.8,2375.4,0.93501393]
[1725422015039,1.37968,2375.8,2375.4,0.93501393]
[1725422015241,0.42099,2375.7,2375.4,0.93501393]
[1725422015740,1.37968,2375.8,2375.4,0.93501393]
[1725422015941,0.42099,2375.7,2375.4,0.93501393]
[1725422018240,0.421,2375.6,2375.4,0.93501393]
[1725422018742,0.421,2375.7,2375.4,0.93501393]
[1725422019735,0.9587,2375.8,2375.4,0.93501393]
[1725422019943,0.42101,2375.6,2375.4,0.93501393]
[1725422020549,0.421,2375.7,2375.4,0.93501393]
[1725422020738,0.421,2375.7,2375.4,1.35605393]
[1725422020938,0.421,2375.7,2375.4,0.93501393]
[1725422021645,0.42101,2375.6,2375.4,0.93501393]
[1725422021844,0.42102,2375.5,2375.4,0.00631393]
[1725422022345,0.42102,2375.5,2374.7,0.9681]
[1725422022346,1.05268,2375.3,2374.7,0.4865]
[1725422022536,1.0527,2375.2,2374.7,1.41186]
[1725422022745,0.42113,2374.9,2374.7,0.9907]
[1725422023244,0.42113,2375.0,2374.8,4.2112]
[1725422023548,0.42108,2375.2,2374.9,0.42112]
[1725422024141,0.4211,2375.1,2374.8,0.42114]
[1725422024450,0.42109,2375.1,2374.8,0.42114]
[1725422024952,6.1178,2375.3,2374.7,0.99701393]
[1725422025148,0.4211,2375.1,2374.8,0.42114]
[1725422025550,0.4211,2375.1,2374.9,0.42113]
[1725422025852,0.42108,2375.2,2374.9,0.42112]
[1725422026247,0.4211,2375.1,2374.9,0.42112]
[1725422026644,0.42109,2375.2,2374.9,0.42112]
[1725422027046,0.42105,2375.4,2375.1,0.42109]
[1725422027244,0.42104,2375.5,2375.2,1.35877]
[1725422027638,0.42104,2375.4,2375.2,0.9377]
[1725422027842,0.42106,2375.3,2375.2,0.9377]
[1725422028051,0.42105,2375.4,2375.2,0.9377]
[1725422028445,3.6873,2375.6,2375.2,0.9377]
[1725422028446,0.42106,2375.3,2375.2,0.9377]
[1725422028751,3.6873,2375.6,2374.9,3.2078]
[1725422028752,3.96261,2375.4,2374.9,3.2078]
[1725422028940,0.42108,2375.2,2375.0,0.9273]
[1725422029143,2.91,2375.4,2375.0,0.9273]
[1725422029342,0.42108,2375.2,2375.0,1.34841]
[1725422029753,0.42108,2375.2,2375.0,5.55881]
[1725422030354,0.42107,2375.3,2375.1,0.42109]
[1725422031348,0.42107,2375.3,2375.0,0.9273]
[1725422031657,0.42107,2375.3,2375.0,1.3484]
[1725422031850,0.42107,2375.3,2375.1,0.42109]
[1725422032552,2.91,2375.4,2375.0,0.9273]
[1725422032747,3.2078,2375.6,2375.0,0.9273]
[1725422032948,3.62882,2375.6,2375.3,0.42104]
[1725422033157,3.62882,2375.6,2375.4,0.4932]
[1725422033358,3.62882,2375.6,2375.4,0.91424]
[1725422033552,3.62882,2375.6,2375.5,0.4788]
[1725422033958,3.2078,2375.6,2375.5,0.89982]
[1725422034149,3.2078,2375.6,2375.5,1.39072]
[1725422035659,3.2078,2375.6,2375.5,0.4788]
[1725422035857,3.6288,2375.6,2375.5,0.4788]
[1725422036355,0.42105,2375.4,2375.2,0.42107]
[1725422036560,0.42105,2375.4,2375.2,0.88407]
[1725422036754,0.42103,2375.5,2375.3,0.4773]
[1725422036956,0.42104,2375.4,2375.3,0.4773]
[1725422037556,0.42103,2375.5,2375.3,0.89836]
[1725422037753,6.1178,2375.6,2375.3,0.4773]
[1725422037949,0.42104,2375.5,2375.3,0.4773]
[1725422038150,0.42104,2375.4,2375.3,0.4773]
[1725422038859,0.42103,2375.5,2375.3,0.89835]
[1725422040155,0.42103,2375.5,2375.3,0.4773]
[1725422040852,0.42104,2375.5,2375.3,0.4773]
[1725422041254,0.42104,2375.4,2375.3,0.4773]
[1725422041660,0.90503,2375.5,2375.3,0.89835]
[1725422041856,0.42104,2375.4,2375.3,0.4773]
[1725422042051,0.484,2375.5,2375.3,0.4773]
[1725422042254,0.42104,2375.4,2375.3,0.4773]
[1725422043456,0.42104,2375.5,2375.3,0.89836]
[1725422044259,3.2078,2375.6,2375.5,0.42102]
[1725422045161,0.42102,2375.5,2375.3,0.89834]
[1725422045556,3.62882,2375.6,2375.4,0.42104]
[1725422046966,3.2078,2375.6,2375.3,0.4773]
[1725422047162,6.1178,2375.6,2375.2,0.463]
[1725422047464,0.42108,2375.2,2375.1,3.2078]
[1725422049054,0.42108,2375.2,2375.0,0.4211]
[1725422050170,0.42108,2375.2,2375.0,0.42111]
[1725422051570,0.42108,2375.2,2374.9,0.4904]
[1725422051571,3.33107,2375.3,2375.1,0.42109]
[1725422051978,0.42108,2375.2,2375.0,0.4211]
[1725422052365,3.33107,2375.3,2375.1,0.42109]
[1725422052569,3.33107,2375.3,2374.9,0.4904]
[1725422052771,3.33107,2375.3,2375.0,0.42111]
[1725422052970,0.42108,2375.2,2375.0,0.42111]
[1725422053571,3.33107,2375.3,2375.1,0.42109]
[1725422057979,2.13085,2375.4,2375.2,0.42108]
[1725422058377,0.42103,2375.5,2375.3,0.42106]
[1725422058575,0.42103,2375.5,2375.4,0.4694]
[1725422060181,0.42103,2375.5,2375.4,0.0322]
[1725422060682,7.83843,2375.5,2375.4,0.0322]
[1725422063187,12.78731682,2375.5,2375.4,0.0322]
[1725422063485,13.83987682,2375.5,2375.4,0.0322]
[1725422065182,10.63207682,2375.5,2375.4,0.0322]
[1725422065395,13.83987682,2375.5,2375.4,0.0322]
[1725422067292,10.63207682,2375.5,2375.4,0.0322]
[1725422067500,13.83987682,2375.5,2375.4,0.0322]
[1725422068489,13.83987682,2375.5,2375.0,0.4461]
[1725422068490,0.42109,2375.1,2375.0,0.4461]
[1725422072388,0.42108,2375.2,2375.0,0.8672]
[1725422073187,0.42107,2375.3,2375.1,0.42109]
[1725422073395,1.21,2375.4,2375.1,0.42109]
[1725422073396,0.42108,2375.2,2375.1,0.42109]
[1725422073592,0.42107,2375.3,2375.1,0.42109]
[1725422073894,0.42107,2375.3,2375.2,0.4513]
[1725422075290,1.21,2375.4,2375.2,0.87238]
[1725422075291,0.42106,2375.4,2375.2,0.87238]
[1725422075491,9.36668682,2375.5,2375.2,0.87236]
[1725422075688,4.83883,2375.5,2375.3,0.89966]
[1725422075890,4.83883,2375.5,2375.4,0.4757]
[1725422076297,0.42104,2375.4,2375.3,0.4786]
[1725422077591,0.42106,2375.3,2374.9,3.2078]
[1725422077786,1.63106,2375.3,2375.0,1.83091]
[1725422077987,1.63106,2375.3,2375.1,0.42109]
[1725422080294,0.42106,2375.3,2375.1,0.42109]
[1725422080984,0.42109,2375.2,2375.0,1.4098]
[1725422081592,0.42109,2375.1,2375.0,1.4098]
[1725422081791,0.42109,2375.2,2375.0,1.4098]
[1725422082094,0.42109,2375.2,2375.0,1.83091]
[1725422084296,0.42109,2375.1,2375.0,0.9571]
[1725422086000,1.21,2375.4,2375.0,0.9571]
[1725422086597,4.94888682,2375.6,2375.0,0.9571]
[1725422086898,6.57989682,2375.6,2375.0,2.00986]
[1725422087094,6.57989682,2375.6,2375.4,0.42102]
[1725422087294,1.21,2375.6,2375.5,1.81102]
[1725422087894,8.15668682,2375.8,2375.7,0.42099]
[1725422088195,3.2078,2375.8,2375.7,0.42099]
[1725422091201,4.83878,2375.8,2375.6,0.42099]
[1725422092003,0.421,2375.6,2375.5,0.9398]
[1725422092921,1.05252,2375.6,2374.9,5.312]
[1725422093115,0.42108,2375.2,2375.1,0.4508]
[1725422094118,0.42108,2375.2,2375.1,0.87189]
[1725422094710,0.42107,2375.3,2375.1,0.87189]
[1725422095414,0.42108,2375.2,2375.1,0.87189]
[1725422096122,0.42108,2375.2,2375.1,0.4508]
[1725422096715,0.42112,2375.0,2374.7,3.21411393]
[1725422097025,0.42112,2375.0,2374.8,1.31704]
[1725422097026,1.63112,2375.0,2374.8,1.31704]
[1725422098022,0.4211,2375.1,2374.9,0.42113]
[1725422098815,0.42111,2375.0,2374.8,1.31704]
[1725422099020,0.42113,2374.9,2374.8,0.8959]
[1725422099316,4.4178,2375.2,2374.8,0.8959]
[1725422099623,0.42112,2375.0,2374.8,0.8959]
[1725422100125,0.42112,2375.0,2374.8,1.31705]
[1725422100319,0.42111,2375.1,2374.8,1.31703]
[1725422100519,0.42111,2375.1,2374.9,0.42111]
[1725422100721,0.42111,2375.1,2375.0,0.4608]
[1725422100918,3.62891,2375.1,2375.0,0.4608]
[1725422101226,0.42111,2375.0,2374.8,1.31704]
[1725422101419,0.42111,2375.0,2374.8,1.77784]
[1725422101725,3.6289,2375.1,2374.9,0.42113]
[1725422102628,3.2078,2375.1,2374.8,1.3567]
[1725422103018,3.2078,2375.1,2375.0,0.42111]
[1725422103320,3.62889,2375.1,2375.0,0.42111]
[1725422103520,1.05255,2375.6,2375.0,4.2104]
[1725422103721,2.44715,2375.6,2374.9,1.21]
[1725422103925,0.42107,2375.3,2374.9,1.21]
[1725422104116,1.63107,2375.3,2375.1,0.42108]
[1725422104529,0.42108,2375.2,2375.1,0.42108]
[1725422104722,0.4211,2375.1,2374.9,0.42113]
[1725422105420,2.11648,2375.2,2375.0,0.4211]
[1725422105620,0.42108,2375.2,2375.0,0.4211]
[1725422106922,0.42113,2374.9,2374.8,1.3567]
[1725422107124,0.42115,2374.8,2374.7,0.00631393]
[1725422107425,3.62895,2374.8,2374.7,0.00631393]
[1725422108824,4.6055,2375.1,2374.7,0.42747393]
[1725422109123,1.21,2375.0,2374.7,0.00631393]
[1725422109322,0.42115,2374.8,2374.7,0.00631393]
[1725422111923,3.62894,2374.9,2374.7,0.00631393]
[1725422112313,0.42115,2374.8,2374.7,0.00631393]
[1725422112920,3.62894,2374.9,2374.7,0.00631393]
[1725422113124,0.42115,2374.8,2374.7,0.00631393]
[1725422114127,3.62894,2374.9,2374.7,0.00631393]
[1725422114328,0.42115,2374.8,2374.7,0.00631393]
[1725422115428,3.62894,2374.9,2374.7,0.42747393]
[1725422115629,0.42115,2374.8,2374.7,0.00631393]
[1725422116033,3.62894,2374.9,2374.7,0.42747393]
[1725422116624,3.62894,2374.9,2374.7,0.00631393]
[1725422118029,0.42114,2374.9,2374.7,0.42747393]
[1725422118235,0.42114,2374.9,2374.8,0.4915]
[1725422118533,7.3248,2375.2,2374.8,0.4915]
[1725422118722,0.4211,2375.1,2374.9,1.34372]
[1725422119537,0.4211,2375.1,2374.9,1.34373]
[1725422120630,4.117,2375.2,2374.9,0.9226]
[1725422120932,4.117,2375.2,2375.1,0.42109]
[1725422121824,4.53808,2375.2,2375.0,0.4211]
[1725422124529,1.63107,2375.3,2375.0,0.4211]
[1725422124936,0.42108,2375.2,2375.0,0.4211]
[1725422125134,1.21,2375.2,2374.7,0.00631393]
[1725422125433,0.42114,2374.9,2374.7,0.88147393]
[1725422129427,0.42115,2374.8,2374.7,0.00631393]
[1725422130143,1.63115,2374.8,2374.7,0.00631393]
[1725422130541,2.10735,2374.8,2374.7,0.00631393]
[1725422130938,0.42125,2374.2,2373.9,1.65308424]
[1725422131236,2.68439,2374.2,2373.9,1.65308424]
[1725422131541,0.42127,2374.1,2373.9,1.65308424]
[1725422131742,6.07987,2374.1,2373.9,1.65308424]
[1725422131942,12.07987,2374.1,2373.9,1.65308424]
[1725422132338,0.42127,2374.1,2373.9,1.65308424]
[1725422132746,0.42127,2374.1,2373.8,0.4725]
[1725422133050,4.212,2374.1,2373.7,0.42133]
[1725422133243,0.4213,2374.0,2373.7,0.89383]
[1725422134141,0.4213,2374.0,2373.5,4.12187]
[1725422134142,0.42134,2373.8,2373.5,4.12187]
[1725422135638,1.39922,2373.9,2373.6,0.42136]
[1725422135840,0.42132,2373.9,2373.6,0.42136]
[1725422136241,0.42132,2373.9,2373.7,0.0322]
[1725422136744,0.42129,2374.1,2373.8,0.42132]
[1725422136945,0.42129,2374.0,2373.9,0.49]
[1725422138743,0.42129,2374.0,2373.7,0.45353]
[1725422139036,0.42132,2373.9,2373.7,0.0322]
[1725422140742,0.42132,2373.9,2373.7,0.45354]
[1725422140939,2.91,2374.0,2373.7,0.45354]
[1725422140940,3.3313,2374.0,2373.7,0.45354]
[1725422141140,0.4213,2374.0,2373.8,0.42132]
[1725422141444,0.42128,2374.1,2373.7,0.0322]
[1725422141845,4.11466,2374.2,2373.9,0.4213]
[1725422142040,3.6934,2374.2,2374.0,0.9751]
[1725422142241,0.42127,2374.1,2374.0,0.9751]
[1725422143045,4.11466,2374.2,2374.0,0.9751]
[1725422143246,0.42127,2374.1,2374.0,0.9751]
[1725422145554,0.42131,2373.9,2373.7,0.45354]
[1725422145753,0.42131,2373.9,2373.7,0.0322]
[1725422145950,0.4213,2374.0,2373.7,0.45353]
[1725422147351,3.33128,2374.1,2373.8,0.4886]
[1725422147754,0.42129,2374.0,2373.8,0.90991]
[1725422149355,0.42129,2374.0,2373.7,0.0322]
[1725422150258,0.42129,2374.0,2373.8,0.42132]
[1725422150465,3.33128,2374.1,2373.8,0.42132]
[1725422150755,3.33128,2374.1,2373.8,0.88912]
[1725422150951,0.42129,2374.0,2373.8,0.88912]
[1725422152350,3.33128,2374.1,2373.8,0.88912]
[1725422152857,0.42129,2374.0,2373.8,0.88912]
[1725422153052,3.33128,2374.1,2373.8,0.88912]
[1725422153252,3.33128,2374.1,2373.9,0.4213]
[1725422153554,3.33128,2374.1,2374.0,0.4503]
[1725422153756,3.33128,2374.1,2374.0,0.9292]
[1725422153963,7.54328,2374.1,2374.0,0.9292]
[1725422154457,0.42131,2373.9,2373.8,0.4678]
[1725422154763,0.4213,2374.0,2373.9,0.9261]
[1725422155155,3.33128,2374.1,2373.9,0.9261]
[1725422155354,3.33128,2374.1,2373.9,1.3474]
[1725422156155,1.21,2374.0,2373.9,0.9261]
[1725422156658,1.21,2374.0,2373.9,1.34741]
[1725422156857,0.00631393,2374.3,2374.2,0.42125]
[1725422157764,1.21631393,2374.3,2373.9,0.9261]
[1725422158153,1.63755393,2374.3,2374.1,0.42127]
[1725422159661,1.63755393,2374.3,2374.0,0.42128]
[1725422159965,0.42128,2374.1,2373.9,1.3474]
[1725422160169,0.42129,2374.0,2373.9,0.9261]
[1725422160352,0.42128,2374.1,2373.9,0.9261]
[1725422160555,4.4178,2374.2,2373.9,1.3474]
[1725422160556,4.83906,2374.2,2373.9,1.3474]
[1725422161061,2.26323,2374.0,2373.4,4.102]
[1725422161268,1.21,2373.6,2373.5,0.9169]
[1725422161460,1.63133,2373.8,2373.5,0.9169]
[1725422161655,1.21,2373.8,2373.5,1.33827]
[1725422162068,0.42132,2373.8,2373.5,1.33827]
[1725422162370,0.42135,2373.7,2373.5,0.9169]
[1725422162557,0.42135,2373.7,2373.1,3.2078]
[1725422162558,0.4214,2373.4,2372.9,0.42148]
[1725422162754,0.4214,2373.4,2373.0,1.3872]
[1725422162959,0.42145,2373.1,2372.5,8.66177209]
[1725422163161,0.00631393,2373.0,2372.7,1.33732]
[1725422163361,0.00631393,2373.0,2372.8,3.2078]
[1725422163658,0.00631393,2373.0,2372.9,0.42148]
[1725422164058,0.00631393,2373.0,2372.9,4.63588]
[1725422169571,0.00631393,2373.0,2372.9,0.42148]
[1725422169760,0.00631393,2373.0,2372.9,4.63588]
[1725422170162,0.00631393,2373.0,2372.9,0.42148]
[1725422172370,0.00631393,2373.0,2372.9,0.45368]
[1725422175678,0.00631393,2373.0,2372.9,4.66808]
[1725422176574,0.00631393,2373.0,2372.9,0.45368]
[1725422178180,0.00631393,2373.0,2372.9,4.66808]
[1725422179290,0.00631393,2373.0,2372.9,0.45368]
[1725422183079,0.00631393,2373.0,2372.7,0.9143]
[1725422183080,0.42149,2372.9,2372.7,0.42151]
[1725422183384,0.00631393,2373.0,2372.2,1.21]
[1725422183385,0.47721393,2373.0,2372.2,1.21]
[1725422183685,0.47721393,2373.0,2372.6,0.42154]
[1725422183884,1.6315,2372.9,2372.7,0.9296]
[1725422184186,3.33149,2372.9,2372.7,0.9296]
[1725422184488,0.89868393,2373.0,2372.7,1.35111]
[1725422184686,0.89868393,2373.0,2372.7,0.9296]
[1725422186287,0.89868393,2373.0,2372.7,1.35111]
[1725422186883,0.47721393,2373.0,2372.7,1.35111]
[1725422187083,0.00631393,2373.0,2372.8,0.42149]
[1725422187285,0.42778393,2373.0,2372.8,0.4932]
[1725422187687,3.33149,2372.9,2372.6,0.42153]
[1725422187991,3.33149,2372.9,2372.7,0.4891]
[1725422189091,0.4215,2372.8,2372.7,0.4891]
[1725422189590,3.3315,2372.9,2372.7,0.4891]
[1725422190283,0.4215,2372.8,2372.7,0.4891]
[1725422190786,0.00631393,2373.0,2372.7,0.4891]
[1725422190987,0.00631393,2373.0,2372.8,0.4754]
[1725422191187,0.00631393,2373.0,2372.8,0.9616]
[1725422191790,0.00631393,2373.0,2372.8,1.38309]
[1725422192496,0.00631393,2373.0,2372.8,0.9616]
[1725422193295,0.42148,2372.9,2372.8,0.9616]
[1725422193492,0.00631393,2373.0,2372.8,0.4754]
[1725422193695,0.45691393,2373.0,2372.8,0.4754]
[1725422194296,0.4615,2372.9,2372.8,0.4754]
[1725422194900,0.88298,2372.9,2372.8,0.4754]
[1725422195198,5.09738,2372.9,2372.6,0.42153]
[1725422195395,0.42153,2372.7,2372.5,0.4579]
[1725422195699,0.42153,2372.7,2372.5,0.9213]
[1725422196996,0.00631393,2373.0,2372.5,0.9213]
[1725422197190,0.42149,2372.9,2372.7,0.42152]
[1725422197390,0.00631393,2373.0,2372.5,0.9213]
[1725422197595,0.42779393,2373.0,2372.7,0.42151]
[1725422197796,0.42779393,2373.0,2372.8,0.4692]
[1725422198089,0.42779393,2373.0,2372.8,0.8907]
[1725422198297,0.42779393,2373.0,2372.3,3.2078]
[1725422198298,0.00631393,2373.0,2372.3,3.2078]
[1725422198492,0.00631393,2373.0,2372.8,0.42149]
[1725422198693,0.00631393,2373.0,2372.6,0.4768]
[1725422198694,3.96375,2372.9,2372.4,0.4692]
[1725422198992,3.2078,2372.7,2372.4,0.4692]
[1725422199198,3.21411393,2373.0,2372.4,3.3792]
[1725422199399,3.21411393,2373.0,2372.8,0.4215]
[1725422199600,3.21411393,2373.0,2372.9,0.4768]
[1725422200099,7.42851393,2373.0,2372.4,0.4692]
[1725422200297,3.63558393,2373.0,2372.7,0.42152]
[1725422200493,3.63558393,2373.0,2372.8,0.943]
[1725422200891,3.63558393,2373.0,2372.9,0.4542]
[1725422201088,3.21411393,2373.0,2372.9,0.4542]
[1725422202198,13.84998393,2373.0,2372.7,0.42151]
[1725422202396,4.10778393,2373.0,2372.7,0.42151]
[1725422202701,3.63558393,2373.0,2372.8,1.3958]
[1725422202902,3.21411393,2373.0,2372.8,1.81729]
[1725422203690,3.21411393,2373.0,2372.8,1.3958]
[1725422203899,3.21411393,2373.0,2372.8,1.8173]
[1725422204198,3.21411393,2373.0,2372.3,3.2078]
[1725422204499,3.21411393,2373.0,2372.7,0.42152]
[1725422204500,1.3692,2372.9,2372.7,0.42152]
[1725422205102,1.79068,2372.9,2372.6,0.42153]
[1725422205506,1.79068,2372.9,2372.6,0.42152]
[1725422205700,1.79068,2372.9,2372.7,0.42152]
[1725422205701,4.2144,2372.8,2372.7,0.42152]
[1725422206810,1.3692,2372.9,2372.7,0.42152]
[1725422207707,3.63559393,2373.0,2372.8,0.4562]
[1725422207898,4.12229393,2373.0,2372.8,0.4562]
[1725422208307,3.21411393,2373.0,2372.8,0.8777]
[1725422208501,3.21411393,2373.0,2372.9,0.9321]
[1725422210602,3.21411393,2373.0,2372.9,1.35358]
[1725422210603,0.00631393,2373.0,2372.9,1.35358]
[1725422214509,10.33851393,2373.0,2372.8,0.0322]
[1725422214698,4.34060016,2372.9,2372.5,0.4616]
[1725422214901,2.91,2372.7,2372.5,0.4616]
[1725422215507,6.1178,2372.7,2372.4,0.9433]
[1725422215808,3.33153,2372.7,2372.4,0.9433]
[1725422216009,1.21,2372.6,2372.4,0.9433]
[1725422216899,4.39725235,2372.8,2372.4,2.1533]
[1725422217104,4.39725235,2372.8,2372.5,0.42154]
[1725422217413,5.60725235,2372.8,2372.4,1.36486]
[1725422218006,4.39725235,2372.8,2372.4,1.36486]
[1725422219700,0.42152,2372.7,2372.4,0.9433]
[1725422220709,4.81876235,2372.8,2372.4,0.9433]
[1725422221206,0.54771389,2372.7,2372.4,0.9433]
[1725422221409,4.81876235,2372.8,2372.4,0.9433]
[1725422221814,0.12619171,2372.7,2372.4,0.9433]
[1725422222001,4.81876235,2372.8,2372.4,0.9433]
[1725422222208,0.12619345,2372.7,2372.4,1.36487]
[1725422222515,4.81876235,2372.8,2372.4,1.36487]
[1725422222716,0.12619144,2372.7,2372.4,1.36487]
[1725422223018,4.39725235,2372.8,2372.4,0.9433]
[1725422223207,4.39725235,2372.8,2372.5,0.42154]
[1725422223603,4.39725235,2372.8,2372.6,0.4553]
[1725422224008,4.39725235,2372.8,2372.7,0.42152]
[1725422225919,4.39725235,2372.8,2372.7,4.63592]
[1725422226318,0.00631393,2373.0,2372.9,0.42148]
[1725422229826,0.098,2373.4,2373.3,0.42141]
[1725422230121,0.098,2373.4,2372.9,17.38592]
[1725422230122,4.39725235,2373.7,2373.5,0.42137]
[1725422230321,5.31755235,2373.8,2373.0,0.4698]
[1725422230520,5.31755235,2373.8,2373.5,0.42137]
[1725422230521,0.12608395,2373.7,2373.5,0.42137]
[1725422230715,0.9203,2373.8,2373.6,0.42136]
[1725422231326,12.33027628,2373.9,2373.3,0.9334]
[1725422231327,2.91,2373.7,2373.3,0.9334]
[1725422231523,3.3628,2373.7,2373.5,0.42137]
[1725422232417,3.3628,2373.7,2373.4,0.493]
[1725422232418,3.78414,2373.7,2373.4,0.91438]
[1725422233230,0.42137,2373.6,2373.4,0.493]
[1725422233422,0.42138,2373.5,2373.4,0.493]
[1725422233726,0.42141,2373.3,2373.2,3.2078]
[1725422234329,0.42141,2373.3,2373.0,0.42145]
[1725422234330,0.88031,2373.3,2373.0,0.42145]
[1725422234520,0.4589,2373.3,2373.1,0.42145]
[1725422234929,0.4589,2373.3,2373.2,0.42143]
[1725422235122,0.4589,2373.3,2373.1,0.42144]
[1725422235332,0.4589,2373.3,2373.2,0.42143]
[1725422235627,3.2078,2373.6,2372.9,4.6336]
[1725422235833,3.2078,2373.6,2373.5,0.42138]
[1725422236333,4.24545,2373.7,2373.5,0.42138]
[1725422237033,0.4552,2373.7,2373.5,0.42137]
[1725422237218,0.4659,2373.8,2373.6,0.87776]
[1725422237419,0.4659,2373.8,2373.6,0.4564]
[1725422237725,0.4659,2373.8,2373.6,0.87775]
[1725422238129,21.09134363,2373.9,2373.7,0.42134]
[1725422238332,16.97434363,2373.9,2373.7,0.87924]
[1725422238533,21.18714363,2373.9,2373.7,0.87924]
[1725422238829,14.06434363,2373.9,2373.8,0.42132]
[1725422239124,9.89994363,2373.9,2373.8,0.42132]
[1725422239428,4.40356628,2373.9,2373.8,0.42132]
[1725422241543,0.00631393,2373.9,2373.8,7.54412]
[1725422241833,0.00631393,2373.9,2373.8,10.75192]
[1725422242033,3.3058,2374.3,2373.8,16.3306]
[1725422242333,1.3859,2374.5,2373.8,6.1178]
[1725422242537,1.3859,2374.5,2374.2,0.42125]
[1725422243232,1.3859,2374.5,2374.1,0.42757393]
[1725422243840,3.2078,2374.4,2374.1,0.00631393]
[1725422244332,0.42124,2374.3,2374.1,0.00631393]
[1725422244939,4.63325,2374.2,2374.1,0.00631393]
[1725422245137,0.42125,2374.2,2374.1,0.00631393]
[1725422245435,4.63325,2374.2,2374.1,0.00631393]
[1725422248034,5.68639,2374.2,2374.1,0.00631393]
[1725422257550,0.42125,2374.2,2374.1,0.00631393]
[1725422257749,4.63325,2374.2,2374.1,0.00631393]
[1725422258050,0.42125,2374.2,2374.1,0.00631393]
[1725422258248,4.63325,2374.2,2374.1,0.00631393]
[1725422259446,0.42125,2374.2,2374.1,0.00631393]
[1725422259646,4.63325,2374.2,2374.1,0.00631393]
[1725422260348,5.68639,2374.2,2374.1,0.00631393]
[1725422262749,8.89419,2374.2,2374.1,0.00631393]
[1725422263254,0.42138,2373.5,2373.4,3.2078]
[1725422263443,0.42138,2373.5,2373.4,0.8998]
[1725422263954,0.42141,2373.3,2373.2,0.4565]
[1725422267451,0.42141,2373.4,2373.2,0.4565]
[1725422268650,0.4214,2373.4,2373.2,0.4565]
[1725422269150,3.2078,2373.6,2373.2,0.4565]
[1725422269357,3.62917,2373.6,2373.4,0.42139]
[1725422269546,0.42135,2373.7,2373.5,0.4696]
[1725422269749,0.42135,2373.7,2373.6,0.9024]
[1725422272954,0.42142,2373.3,2373.0,0.00631393]
[1725422273155,7.24882907,2373.7,2373.1,0.4382]
[1725422273156,0.42143,2373.2,2373.1,0.4382]
[1725422273456,0.42143,2373.2,2373.1,0.8891]
[1725422273856,0.42142,2373.3,2373.1,0.8891]
[1725422277268,0.00631393,2373.4,2373.2,0.42142]
[1725422277456,0.00631393,2373.4,2373.1,0.8891]
[1725422277853,0.00631393,2373.4,2373.2,0.42143]
[1725422278056,0.00631393,2373.4,2373.3,0.42141]
[1725422278452,0.00631393,2373.4,2373.3,4.63501]
[1725422281162,0.00631393,2373.4,2373.3,0.42141]
[1725422281757,0.00631393,2373.4,2373.3,4.63501]
[1725422282054,0.00631393,2373.4,2373.3,0.42141]
[1725422282562,0.00631393,2373.4,2373.3,4.63501]
[1725422283055,0.00631393,2373.4,2373.3,0.42141]
[1725422283464,0.00631393,2373.4,2373.3,4.63501]
[1725422285055,0.00631393,2373.4,2373.3,0.42141]
[1725422285758,0.00631393,2373.4,2373.3,4.63501]
[1725422286258,4.81109308,2373.9,2373.7,0.42134]
[1725422286459,0.42131,2373.9,2373.8,0.9327]
[1725422287668,0.42131,2373.9,2373.8,1.35402]
[1725422287858,0.4213,2374.0,2373.8,1.35402]
[1725422289362,0.42131,2373.9,2373.8,1.35402]
[1725422289566,0.4213,2374.0,2373.8,1.35402]
[1725422289761,2.91631393,2374.1,2373.9,0.4643]
[1725422290166,0.42129,2374.0,2373.9,0.88561]
[1725422290962,0.42129,2374.0,2373.9,0.4643]
[1725422291158,0.42129,2374.0,2373.9,0.88561]
[1725422291373,0.42129,2374.0,2373.9,0.4643]
[1725422291669,0.42129,2374.0,2373.5,3.62917]
[1725422291670,0.42135,2373.7,2373.5,3.62917]
[1725422291974,0.42136,2373.6,2373.5,0.445]